fUST/lending_fUST_20240521
["ID","MTS","AMOUNT","RATE_DAILY","PERIOD"]
[327574239,1716239443537,-2634.87580338,6.845e-05,2]
[327574240,1716239443547,-154.8915759,6.845e-05,2]
[327574241,1716239443555,-690.328442,6.845e-05,2]
[327574242,1716239443564,-54774.38019533,6.845e-05,2]
[327574252,1716239443933,-4637.61402368,6.845e-05,2]
[327574254,1716239443942,-1201.22458055,6.846e-05,2]
[327574256,1716239443953,-658.27806077,6.846e-05,2]
[327574258,1716239443966,-9561.24585473,6.846e-05,2]
[327574260,1716239443984,-410.54570505,6.846e-05,2]
[327574262,1716239444005,-154.8915759,6.846e-05,2]
[327574264,1716239444015,-521.4050146,6.846e-05,2]
[327574266,1716239444024,-406.12600878,6.851e-05,2]
[327574268,1716239444034,-155.09410401,6.851e-05,2]
[327574270,1716239444043,-1043.44234529,6.851e-05,2]
[327574272,1716239444053,-835.65147081,6.851e-05,2]
[327574274,1716239444063,-338.95654722,6.93e-05,2]
[327574276,1716239444072,-322.01560979,6.93e-05,2]
[327574290,1716239444195,-284.99869591,6.93e-05,2]
[327574293,1716239444205,-174.07109101,6.934e-05,2]
[327574295,1716239444215,-684.75161522,7.022e-05,2]
[327574297,1716239444224,-154.85695567,7.122e-05,2]
[327574299,1716239444233,-309.61298454,7.129e-05,2]
[327574301,1716239444242,-163.48782139,7.129e-05,2]
[327574302,1716239444252,-2089.63547188,7.13e-05,2]
[327574305,1716239444261,-3939.80260321,7.13e-05,2]
[327574307,1716239444270,-455.40902301,7.227e-05,2]
[327574308,1716239444279,-177.40182637,7.298e-05,2]
[327574310,1716239444289,-1337.89685017,7.299e-05,2]
[327574312,1716239444298,-290.56728749,7.3e-05,2]
[327574314,1716239444307,-155.02186096,7.3e-05,2]
[327574316,1716239444317,-1896.23906673,7.32e-05,2]
[327574318,1716239444326,-154.96899437,7.32e-05,2]
[327574321,1716239444344,-3293.97669557,7.32e-05,2]
[327574323,1716239444353,-309.77957384,7.321e-05,2]
[327574325,1716239444363,-155.00444228,7.321e-05,2]
[327574327,1716239444372,-10502.84306112,7.321e-05,2]
[327574329,1716239444384,-22707.59507718,7.397e-05,2]
[327574332,1716239444396,-2192.40492282,7.397e-05,2]
[327574334,1716239444405,-1003.5509561,7.999e-05,2]
[327574336,1716239444415,-3631.20230829,8e-05,2]
[327574338,1716239444427,-172.63581145,0.0001,2]
[327574344,1716239444475,-4135.88681308,0.0001,2]
[327574346,1716239444487,-1701.781057,0.0001,2]
[327574348,1716239444498,-1804.323423,0.0001,2]
[327574350,1716239444509,-1585.92716877,0.0001,2]
[327574351,1716239444518,-174.071091,0.00010915,2]
[327574352,1716239444527,-225.1,0.00010959,2]
[327574353,1716239444537,-496.79,0.00010959,2]
[327574354,1716239444546,-530.5830671,0.000129,2]
[327574355,1716239444558,-2380.08110606,0.000129,2]
[327574356,1716239444567,-378.06185431,0.00012981,2]
[327574357,1716239444578,-2532.60231885,0.00012981,2]
[327574358,1716239444588,-163.20218723,0.00013697,2]
[327574360,1716239444597,-522.72294863,0.00013697,2]
[327574361,1716239444606,-309.62773432,0.00013697,2]
[327574362,1716239444616,-238.80965777,0.00013697,2]
[327574363,1716239444625,-156.92939147,0.00013697,2]
[327574364,1716239444634,-207.44455215,0.00013697,2]
[327574365,1716239444645,-245.6106982,0.00013697,2]
[327574366,1716239444654,-3000.0,0.00013699,2]
[327574367,1716239444663,-817.584871,0.00013699,2]
[327574368,1716239444676,-283.45640941,0.000137,2]
[327574369,1716239444686,-807.99924686,0.00014,2]
[327574370,1716239444695,-174.071091,0.00014997,2]
[327574371,1716239444705,-383.84973881,0.00015,2]
[327574372,1716239444715,-27512.25416109,0.00015,2]
[327574373,1716239444724,-3977.95327634,0.00015,2]
[327574374,1716239444733,-2108.05589247,0.00015,2]
[327574375,1716239444743,-942.77170322,0.00015,2]
[327574376,1716239444752,-1684.33877323,0.00015,2]
[327574377,1716239444761,-1149.11752083,0.00015,2]
[327574378,1716239444771,-1149.34526784,0.00015,2]
[327574379,1716239444780,-189.91157371,0.000156,2]
[327574380,1716239444789,-305.37736198,0.00016,2]
[327574381,1716239444799,-154.90705577,0.000165,2]
[327574382,1716239444808,-274.24725433,0.000165,2]
[327574383,1716239444817,-534.72428745,0.00018,2]
[327574384,1716239444826,-150.0,0.000189,2]
[327574385,1716239444839,-174.071091,0.00019078,2]
[327574386,1716239444848,-2910.66417316,0.00019134,2]
[327574387,1716239444858,-500.0,0.00019178,2]
[327574388,1716239444867,-225.0,0.00019178,2]
[327574389,1716239444877,-501.6146846,0.00019178,2]
[327574390,1716239444889,-439.47906074,0.00019178,2]
[327574391,1716239444898,-500.0,0.00019178,2]
[327574392,1716239444907,-475.97037036,0.00019178,2]
[327574393,1716239444918,-540.90922093,0.00019178,2]
[327574394,1716239444928,-500.0,0.00019178,2]
[327574395,1716239444937,-590.13925061,0.00019178,2]
[327574396,1716239444947,-500.0,0.00019178,2]
[327574397,1716239444957,-500.0,0.00019178,2]
[327574398,1716239444966,-500.0,0.00019178,2]
[327574399,1716239444975,-500.0,0.00019178,2]
[327574400,1716239444985,-500.0,0.00019178,2]
[327574401,1716239444994,-500.0,0.00019178,2]
[327574402,1716239445003,-500.0,0.00019178,2]
[327574403,1716239445013,-172.8756621,0.00019178,2]
[327574404,1716239445022,-500.0,0.00019178,2]
[327574405,1716239445031,-500.0,0.00019178,2]
[327574406,1716239445041,-500.0,0.00019178,2]
[327574407,1716239445050,-500.0,0.00019178,2]
[327574408,1716239445059,-500.0,0.00019178,2]
[327574409,1716239445068,-489.37899657,0.00019178,2]
[327574410,1716239445078,-161.676935,0.00019178,2]
[327574411,1716239445087,-11917.80646251,0.000199,3]
[327574412,1716239445097,-88888.0,0.000199,2]
[327574413,1716239445107,-7413.7136393,0.0002,2]
[327574414,1716239445116,-400.0,0.0002,2]
[327574415,1716239445125,-154.90705577,0.0002,2]
[327574416,1716239445135,-1565.51900701,0.0002,2]
[327574417,1716239445145,-240.40188331,0.0002,2]
[327574418,1716239445155,-4692.31037495,0.0002,2]
[327574419,1716239445164,-121029.83103876,0.0002,2]
[327574420,1716239445176,-302.77485479,0.0002,2]
[327574421,1716239445186,-200.0,0.0002,2]
[327574422,1716239445195,-460.0,0.00020054,3]
[327574423,1716239445204,-460.0,0.00020054,2]
[327574424,1716239445213,-150.0,0.00020104,3]
[327574425,1716239445223,-150.0,0.00020104,2]
[327574426,1716239445233,-817.584871,0.00020548,2]
[327574427,1716239445242,-280.0,0.00021,2]
[327574428,1716239445253,-166.666666,0.00021918,2]
[327574429,1716239445262,-3021.1019178,0.00021918,2]
[327574430,1716239445272,-159.70333977,0.00022,2]
[327574431,1716239445283,-460.0,0.00022,2]
[327574432,1716239445292,-460.0,0.00022192,2]
[327574433,1716239445302,-460.0,0.00022241,3]
[327574434,1716239445311,-150.0,0.00022286,3]
[327574435,1716239445321,-166.666666,0.00022431,2]
[327574436,1716239445331,-460.0,0.00022466,2]
[327574437,1716239445342,-460.0,0.0002274,2]
[327574438,1716239445352,-166.666666,0.00022944,2]
[327574439,1716239445361,-154.90705577,0.00023,2]
[327574440,1716239445371,-460.0,0.00023014,2]
[327574441,1716239445380,-460.0,0.00023014,2]
[327574442,1716239445390,-166.666666,0.00023456,2]
[327574443,1716239445400,-150.0,0.000239,2]
[327574444,1716239445410,-166.666666,0.00023969,2]
[327574445,1716239445422,-187.16152448,0.00024,2]
[327574446,1716239445431,-496.0,0.00024005,2]
[327574447,1716239445441,-150.0,0.00024005,2]
[327574448,1716239445451,-468.0,0.00024164,2]
[327574449,1716239445461,-460.0,0.00024164,2]
[327574450,1716239445470,-561.741231,0.00024384,2]
[327574451,1716239445480,-460.0,0.00024428,3]
[327574452,1716239445489,-150.0,0.00024469,3]
[327574453,1716239445499,-166.666666,0.00024482,2]
[327574454,1716239445508,-380.0,0.00024658,2]
[327574455,1716239445518,-1840.556138,0.000248,2]
[327574456,1716239445527,-154.90705577,0.00025,14]
[327574457,1716239445536,-167.4232435,0.00025,2]
[327574458,1716239445546,-400.71262343,0.00025,2]
[327574459,1716239445556,-460.0,0.00025131,2]
[327574460,1716239445566,-590.0,0.000252,2]
[327574461,1716239445575,-2910.66417316,0.00025287,2]
[327574462,1716239445584,-1000.0,0.000253,2]
[327574463,1716239445594,-460.0,0.00025315,2]
[327574464,1716239445604,-1000.0,0.000258,2]
[327574466,1716239445613,-460.0,0.00026098,2]
[327574467,1716239445624,-1000.0,0.000263,2]
[327574468,1716239445633,-460.0,0.00026466,2]
[327574469,1716239445643,-460.0,0.00026614,5]
[327574470,1716239445653,-150.0,0.00026651,5]
[327574471,1716239445662,-1000.0,0.000268,2]
[327574472,1716239445675,-227.331,0.00026842,2]
[327574473,1716239445684,-1065.04433158,0.00027,2]
[327574474,1716239445694,-496.0,0.00027005,2]
[327574475,1716239445704,-150.0,0.00027005,2]
[327574476,1716239445713,-460.0,0.00027064,2]
[327574477,1716239445723,-669.52353974,0.00027123,2]
[327574478,1716239445733,-4223.25780806,0.00027157,2]
[327574479,1716239445742,-160.0,0.000273,2]
[327574480,1716239445751,-281.0,0.000273,2]
[327574481,1716239445761,-171.082416,0.000273,2]
[327574482,1716239445770,-1000.0,0.000273,2]
[327574483,1716239445780,-417.22450303,0.00027314,2]
[327574484,1716239445789,-1136.59312053,0.0002739,2]
[327574485,1716239445799,-467.42956654,0.00027397,2]
[327574486,1716239445808,-500.0,0.00027397,2]
[327574487,1716239445817,-500.0,0.00027397,2]
[327574488,1716239445826,-500.0,0.00027397,2]
[327574489,1716239445839,-500.0,0.00027397,2]
[327574493,1716239445943,-500.0,0.00027397,2]
[327574494,1716239445954,-500.0,0.00027397,2]
[327574495,1716239445963,-500.0,0.00027397,2]
[327574496,1716239445972,-500.0,0.00027397,2]
[327574497,1716239445982,-500.0,0.00027397,2]
[327574498,1716239445991,-500.0,0.00027397,2]
[327574499,1716239446001,-500.0,0.00027397,2]
[327574500,1716239446010,-500.0,0.00027397,2]
[327574501,1716239446020,-500.0,0.00027397,2]
[327574502,1716239446029,-500.0,0.00027397,2]
[327574503,1716239446040,-500.0,0.00027397,2]
[327574504,1716239446049,-500.0,0.00027397,2]
[327574505,1716239446060,-500.0,0.00027397,2]
[327574506,1716239446069,-500.0,0.00027397,2]
[327574507,1716239446079,-581.60100307,0.00027397,2]
[327574508,1716239446089,-500.0,0.00027397,2]
[327574509,1716239446099,-500.0,0.00027397,2]
[327574510,1716239446109,-500.0,0.00027397,2]
[327574511,1716239446118,-500.0,0.00027397,2]
[327574512,1716239446127,-500.0,0.00027397,2]
[327574513,1716239446136,-357.06900716,0.00027397,2]
[327574514,1716239446146,-500.0,0.00027397,2]
[327574515,1716239446155,-393.79688464,0.00027397,2]
[327574516,1716239446164,-151.0,0.00027397,2]
[327574517,1716239446174,-151.0,0.00027397,2]
[327574518,1716239446183,-3785.26,0.00027397,2]
[327574519,1716239446192,-3785.26,0.00027397,2]
[327574520,1716239446202,-3785.26,0.00027397,2]
[327574521,1716239446212,-3785.26,0.00027397,2]
[327574522,1716239446221,-3785.26,0.00027397,2]
[327574523,1716239446231,-3785.26,0.00027397,2]
[327574524,1716239446240,-3785.26,0.00027397,2]
[327574525,1716239446249,-3785.26,0.00027397,2]
[327574526,1716239446259,-3785.26,0.00027397,2]
[327574527,1716239446269,-3785.26,0.00027397,2]
[327574528,1716239446278,-198.55732446,0.000274,2]
[327574529,1716239446288,-3785.26,0.00027499,2]
[327574530,1716239446297,-43429.9888357,0.000275,2]
[327574531,1716239446306,-151.0,0.000275,2]
[327574532,1716239446315,-933.680003,0.000275,2]
[327574533,1716239446325,-933.680003,0.000275,2]
[327574534,1716239446334,-151.0,0.000275,2]
[327574535,1716239446343,-460.0,0.00027616,2]
[327574536,1716239446352,-187.764266,0.00027671,2]
[327574537,1716239446362,-150.0,0.00027684,2]
[327574538,1716239446371,-221.55802421,0.00028,2]
[327574539,1716239446382,-163.18055358,0.00028,7]
[327574540,1716239446392,-504.697217,0.00028,2]
[327574541,1716239446401,-460.0,0.00028031,2]
[327574542,1716239446412,-3785.26,0.00028669,2]
[327574543,1716239446428,-3785.26,0.00028669,2]
[327574544,1716239446437,-151.0,0.0002867,2]
[327574545,1716239446447,-151.0,0.0002867,2]
[327574546,1716239446456,-3785.26,0.00028769,2]
[327574547,1716239446466,-3785.26,0.00028769,2]
[327574548,1716239446475,-66328.12224559,0.0002877,2]
[327574549,1716239446485,-151.0,0.0002877,2]
[327574550,1716239446495,-211.420344,0.0002877,2]
[327574551,1716239446505,-571.549027,0.0002877,2]
[327574552,1716239446514,-571.549027,0.0002877,2]
[327574553,1716239446524,-151.0,0.0002877,2]
[327574554,1716239446534,-151.0,0.0002877,2]
[327574555,1716239446543,-151.0,0.0002877,2]
[327574556,1716239446552,-151.0,0.0002877,2]
[327574557,1716239446562,-159.469878,0.0002877,2]
[327574558,1716239446572,-151.0,0.0002877,2]
[327574559,1716239446581,-151.0,0.0002877,2]
[327574560,1716239446591,-460.0,0.00028801,7]
[327574561,1716239446601,-150.0,0.00028833,7]
[327574562,1716239446610,-150.0,0.000289,2]
[327574563,1716239446620,-460.0,0.00028997,2]
[327574564,1716239446630,-285.10665987,0.00029,2]
[327574565,1716239446639,-431.03154915,0.00029,2]
[327574566,1716239446649,-189.68834413,0.00029,2]
[327574567,1716239446658,-150.0,0.00029842,2]
[327574568,1716239446670,-3785.26,0.00029999,2]
[327574569,1716239446679,-165.50380027,0.0003,4]
[327574570,1716239446688,-214.32730189,0.0003,4]
[327574571,1716239446697,-154.7215003,0.0003,2]
[327574572,1716239446708,-12394.62189875,0.0003,2]
[327574573,1716239446717,-2614.07860252,0.0003,10]
[327574574,1716239446727,-464.09985769,0.0003,30]
[327574575,1716239446737,-4490.08238201,0.0003,2]
[327574576,1716239446747,-886.41112912,0.0003,4]
[327574577,1716239446756,-255.0,0.0003,2]
[327574578,1716239446766,-36249.08682853,0.0003,2]
[327574579,1716239446776,-933.680003,0.0003,2]
[327574580,1716239446785,-933.680003,0.0003,2]
[327574581,1716239446794,-151.0,0.0003,2]
[327574582,1716239446803,-496.0,0.00030005,2]
[327574583,1716239446813,-150.0,0.00030005,2]
[327574584,1716239446822,-561.741231,0.0003031,2]
[327574585,1716239446833,-150.0,0.00030684,2]
[327574586,1716239446845,-460.0,0.00030988,7]
[327574587,1716239446854,-156.077206,0.00031,2]
[327574588,1716239446865,-234.844273,0.00031,2]
[327574589,1716239446874,-386.46308488,0.00031,2]
[327574590,1716239446889,-386.46308488,0.00031,2]
[327574591,1716239446906,-386.46308488,0.00031,2]
[327574592,1716239446918,-386.46308488,0.00031,2]
[327574593,1716239446928,-386.46308488,0.00031,2]
[327574594,1716239446938,-386.46308488,0.00031,2]
[327574595,1716239446947,-386.46308488,0.00031,2]
[327574596,1716239446956,-386.46308488,0.00031,2]
[327574597,1716239446966,-386.46308488,0.00031,2]
[327574598,1716239446975,-386.46308488,0.00031,2]
[327574599,1716239446985,-386.46308488,0.00031,2]
[327574600,1716239446994,-386.46308488,0.00031,2]
[327574601,1716239447003,-386.46308488,0.00031,2]
[327574602,1716239447012,-386.46308488,0.00031,2]
[327574603,1716239447022,-386.46308488,0.00031,2]
[327574604,1716239447031,-386.46308488,0.00031,2]
[327574605,1716239447042,-386.46308488,0.00031,2]
[327574606,1716239447052,-386.46308488,0.00031,2]
[327574607,1716239447061,-386.46308488,0.00031,2]
[327574608,1716239447071,-386.46308,0.00031,2]
[327574609,1716239447080,-150.0,0.00031015,7]
[327574610,1716239447089,-2910.66417316,0.0003144,2]
[327574611,1716239447099,-320.29662839,0.00032,4]
[327574612,1716239447109,-4997.49039012,0.00032,2]
[327574613,1716239447124,-1993.9421259,0.00032,2]
[327574614,1716239447133,-204.4439736,0.00032762,2]
[327574615,1716239447143,-150.0,0.00032842,2]
[327574616,1716239447152,-151.0,0.00032877,2]
[327574617,1716239447169,-255.0,0.00033,2]
[327574618,1716239447189,-255.0,0.00033,2]
[327574619,1716239447209,-496.0,0.00033005,2]
[327574620,1716239447218,-150.0,0.00033005,2]
[327574621,1716239447227,-153.0,0.00033143,2]
[327574622,1716239447237,-153.0,0.00033143,2]
[327574623,1716239447246,-153.0,0.00033143,2]
[327574624,1716239447255,-153.0,0.00033143,2]
[327574625,1716239447265,-153.0,0.00033143,2]
[327574626,1716239447274,-460.0,0.00033175,7]
[327574627,1716239447283,-150.0,0.00033198,7]
[327574628,1716239447293,-224.3925899,0.00033255,2]
[327574629,1716239447302,-153.0,0.00033255,2]
[327574630,1716239447312,-150.0,0.00033684,2]
[327574631,1716239447321,-820.09844135,0.0003383,4]
[327574632,1716239447331,-150.8642222,0.000339,2]
[327574633,1716239447340,-3785.26,0.00033999,2]
[327574634,1716239447349,-522.49297001,0.00034,5]
[327574635,1716239447358,-467.90063964,0.00034,4]
[327574636,1716239447368,-234.50529968,0.00034,2]
[327574637,1716239447377,-178.94,0.00034,120]
[327574638,1716239447386,-153.0,0.00034102,2]
[327574639,1716239447396,-306.0,0.00034102,2]
[327574640,1716239447405,-153.0,0.00034102,2]
[327574641,1716239447415,-153.0,0.00034102,2]
[327574642,1716239447426,-153.0,0.00034102,2]
[327574643,1716239447434,-153.0,0.00034102,2]
[327574644,1716239447443,-153.0,0.00034102,2]
[327574645,1716239447452,-153.0,0.00034102,2]
[327574646,1716239447461,-153.0,0.00034102,2]
[327574647,1716239447471,-153.0,0.00034102,2]
[327574648,1716239447480,-153.0,0.00034102,2]
[327574649,1716239447489,-153.0,0.00034102,2]
[327574650,1716239447586,-153.0,0.00034102,2]
[327574651,1716239447596,-153.0,0.00034102,2]
[327574652,1716239447606,-153.0,0.00034102,2]
[327574653,1716239447616,-153.0,0.00034102,2]
[327574654,1716239447626,-153.0,0.00034102,2]
[327574655,1716239447636,-153.0,0.00034102,2]
[327574656,1716239447646,-153.0,0.00034102,2]
[327574657,1716239447655,-231.87453083,0.00034299,2]
[327574658,1716239447668,-1000.0,0.00034355,2]
[327574659,1716239447680,-1000.0,0.00034374,2]
[327574660,1716239447690,-1000.0,0.00034389,2]
[327574661,1716239447700,-165.245324,0.00034399,2]
[327574662,1716239447710,-1000.0,0.00034458,2]
[327574663,1716239447720,-301.7284444,0.0003447,4]
[327574664,1716239447729,-1000.0,0.00034489,2]
[327574665,1716239447739,-204.3998579,0.00034521,2]
[327574666,1716239447748,-1000.0,0.00034545,2]
[327574667,1716239447758,-1000.0,0.00034549,2]
[327574668,1716239447768,-1000.0,0.00034555,2]
[327574669,1716239447777,-6682.14,0.00034568,2]
[327574670,1716239447787,-6013.92,0.00034568,2]
[327574671,1716239447797,-6013.92,0.00034568,2]
[327574672,1716239447807,-3785.26,0.00034568,2]
[327574673,1716239447817,-151.0,0.00034569,2]
[327574674,1716239447827,-151.0,0.00034569,2]
[327574675,1716239447840,-151.0,0.00034569,2]
[327574676,1716239447850,-151.0,0.00034569,2]
[327574677,1716239447859,-151.0,0.00034569,2]
[327574678,1716239447869,-195.746499,0.00034569,2]
[327574679,1716239447880,-151.0,0.00034569,2]
[327574680,1716239447891,-163.565868,0.00034569,2]
[327574681,1716239447900,-4811.14,0.00034569,2]
[327574682,1716239447911,-4811.14,0.00034569,2]
[327574683,1716239447922,-4811.14,0.00034569,2]
[327574684,1716239447932,-4811.14,0.00034569,2]
[327574685,1716239447942,-4811.14,0.00034569,2]
[327574686,1716239447951,-4811.14,0.00034569,2]
[327574687,1716239447961,-4811.14,0.00034569,2]
[327574688,1716239447971,-4811.14,0.00034569,2]
[327574689,1716239447980,-3785.26,0.00034569,2]
[327574690,1716239447989,-3785.26,0.00034569,2]
[327574691,1716239447999,-3785.26,0.00034569,2]
[327574692,1716239448009,-3785.26,0.00034569,2]
[327574693,1716239448018,-3785.26,0.00034569,2]
[327574694,1716239448027,-3785.33162024,0.00034569,2]
[327574695,1716239448036,-933.680003,0.00034569,2]
[327574696,1716239448045,-933.680003,0.00034569,2]
[327574697,1716239448055,-153.828467,0.00034569,2]
[327574698,1716239448064,-15824.59283757,0.0003457,3]
[327574699,1716239448073,-359655.99760512,0.0003457,2]
[327574700,1716239448083,-99150.74379893,0.0003457,2]
[327574701,1716239448092,-151.143961,0.0003457,2]
[327574703,1716239448101,-151.0,0.0003457,2]
[327574705,1716239448111,-571.549027,0.0003457,2]
[327574707,1716239448120,-571.549027,0.0003457,2]
[327574709,1716239448130,-151.0,0.0003457,2]
[327574711,1716239448140,-151.0,0.0003457,2]
[327574712,1716239448149,-151.0,0.0003457,2]
[327574713,1716239448159,-151.0,0.0003457,2]
[327574714,1716239448169,-151.0,0.0003457,2]
[327574715,1716239448179,-151.0,0.0003457,2]
[327574716,1716239448188,-933.680003,0.0003457,2]
[327574717,1716239448197,-933.680003,0.0003457,2]
[327574718,1716239448206,-933.680003,0.0003457,2]
[327574719,1716239448215,-933.680003,0.0003457,2]
[327574720,1716239448224,-571.549027,0.00034598,2]
[327574721,1716239448234,-571.549027,0.00034598,2]
[327574722,1716239448244,-151.0,0.00034684,2]
[327574723,1716239448254,-300.0,0.00034718,2]
[327574724,1716239448264,-300.0,0.0003476,2]
[327574725,1716239448273,-300.0,0.00034858,2]
[327574726,1716239448283,-300.0,0.00034901,2]
[327574727,1716239448292,-296.41015155,0.00034945,2]
[327574728,1716239448302,-225.0,0.0003497,35]
[327574729,1716239448311,-225.0,0.0003498,35]
[327574730,1716239448320,-225.0,0.0003499,35]
[327574731,1716239448330,-2039.96859856,0.00035,4]
[327574732,1716239448339,-736.87370374,0.00035,14]
[327574733,1716239448349,-725.34135388,0.00035,2]
[327574734,1716239448358,-216.15836745,0.00035,4]
[327574735,1716239448367,-154.81422293,0.00035,4]
[327574736,1716239448376,-5942.74900988,0.00035,4]
[327574737,1716239448385,-10537.06048781,0.00035,30]
[327574738,1716239448394,-1332.13441236,0.00035,7]
[327574739,1716239448403,-472.2785,0.00035,2]
[327574740,1716239448412,-603.4568888,0.00035049,7]
[327574741,1716239448424,-153.0,0.00035304,2]
[327574742,1716239448433,-291.3463721,0.00035335,2]
[327574743,1716239448443,-291.3463721,0.00035335,2]
[327574744,1716239448452,-291.3463721,0.00035335,2]
[327574745,1716239448462,-291.3463721,0.00035335,2]
[327574746,1716239448471,-291.3463721,0.00035335,2]
[327574747,1716239448481,-291.3463721,0.00035335,2]
[327574748,1716239448490,-291.3463721,0.00035335,2]
[327574749,1716239448499,-291.3463721,0.00035335,2]
[327574750,1716239448508,-291.3463721,0.00035335,2]
[327574751,1716239448517,-291.3463721,0.00035335,2]
[327574752,1716239448527,-291.3463721,0.00035335,2]
[327574753,1716239448536,-291.3463721,0.00035335,2]
[327574754,1716239448545,-460.0,0.00035362,7]
[327574755,1716239448554,-150.0,0.0003538,7]
[327574756,1716239448563,-150.0,0.00035408,7]
[327574757,1716239448572,-507.29473765,0.00035582,30]
[327574758,1716239448582,-653.0,0.00035582,120]
[327574759,1716239448591,-597.22828954,0.00035582,120]
[327574760,1716239448601,-718.8103461,0.00035582,120]
[327574761,1716239448611,-645.03207473,0.00035582,120]
[327574762,1716239448621,-3191.59382558,0.00035582,120]
[327574763,1716239448631,-1000.0,0.00035582,120]
[327574764,1716239448641,-1000.0,0.00035582,120]
[327574765,1716239448650,-516.5,0.00035582,120]
[327574766,1716239448660,-867.55049126,0.00035582,120]
[327574767,1716239448672,-284.14806612,0.00035582,30]
[327574768,1716239448682,-412.80901202,0.00035582,30]
[327574769,1716239448691,-1667.46168463,0.00035582,60]
[327574770,1716239448701,-238.26646995,0.00035582,30]
[327574771,1716239448711,-507.0,0.00035582,30]
[327574772,1716239448720,-507.0,0.00035582,30]
[327574773,1716239448731,-507.0,0.00035582,30]
[327574774,1716239448741,-507.0,0.00035582,30]
[327574775,1716239448750,-507.0,0.00035582,30]
[327574777,1716239448760,-507.0,0.00035582,30]
[327574778,1716239448770,-507.0,0.00035582,30]
[327574780,1716239448779,-507.0,0.00035582,30]
[327574781,1716239448788,-507.0,0.00035582,30]
[327574782,1716239448797,-507.0,0.00035582,30]
[327574783,1716239448806,-507.0,0.00035582,30]
[327574784,1716239448815,-507.0,0.00035582,30]
[327574785,1716239448825,-507.0,0.00035582,30]
[327574786,1716239448834,-507.0,0.00035582,30]
[327574787,1716239448849,-507.0,0.00035582,30]
[327574788,1716239448859,-507.0,0.00035582,30]
[327574789,1716239448868,-507.0,0.00035582,30]
[327574790,1716239448877,-507.0,0.00035582,30]
[327574791,1716239448892,-507.0,0.00035582,30]
[327574792,1716239448902,-507.0,0.00035582,30]
[327574793,1716239448912,-607.78819547,0.00035582,30]
[327574794,1716239448925,-845.23877766,0.00035582,120]
[327574795,1716239448937,-154.82968634,0.00035582,2]
[327574796,1716239448946,-7115.05700243,0.00035582,30]
[327574797,1716239448955,-6190.76850259,0.00035582,30]
[327574798,1716239448964,-3685.0,0.00035582,30]
[327574799,1716239448973,-150946.0970381,0.00035582,30]
[327574800,1716239448983,-150.5,0.00035586,35]
[327574801,1716239448993,-700.0,0.00035586,15]
[327574802,1716239449002,-282.0,0.00035586,35]
[327574803,1716239449095,-150.5,0.00035596,35]
[327574804,1716239449105,-700.0,0.00035596,15]
[327574805,1716239449115,-282.0,0.00035596,35]
[327574806,1716239449124,-150.5,0.00035606,35]
[327574807,1716239449133,-700.0,0.00035606,15]
[327574808,1716239449143,-282.0,0.00035606,35]
[327574809,1716239449152,-154.90705577,0.0003561,4]
[327574810,1716239449161,-154.90705577,0.0003561,4]
[327574811,1716239449175,-192.31296864,0.0003561,4]
[327574812,1716239449186,-210.75573198,0.0003561,4]
[327574813,1716239449195,-1021.2740228,0.0003561,4]
[327574814,1716239449204,-475.36724466,0.0003561,2]
[327574815,1716239449213,-154.90705577,0.0003561,2]
[327574816,1716239449222,-571.549027,0.00035616,2]
[327574817,1716239449231,-571.549027,0.00035616,2]